bitfinex/quotes_ETHUSD_20250711
["timestamp","ask_amount","ask_price","bid_price","bid_amount"]
[1752227777532,2.28058,3013.2,3012.5,10.0]
[1752227777743,0.1656,3012.8,3012.5,10.0]
[1752227777903,2.0124,3012.7,3011.6,7.953]
[1752227778234,2.0124,3012.7,3011.7,10.0]
[1752227778408,0.04149239,3012.6,3011.6,7.953]
[1752227778600,0.04149239,3012.6,3011.9,10.0]
[1752227778802,0.04149239,3012.6,3012.1,10.0]
[1752227779018,0.04149239,3012.6,3012.2,5.229]
[1752227779232,0.04149239,3012.6,3010.5,4.3052685]
[1752227779233,1.5831,3012.5,3010.5,0.8272685]
[1752227779446,1.5831,3012.5,3008.1,11.604]
[1752227779447,3.32281109,3009.5,3007.6,10.4118]
[1752227779771,3.478,3009.8,3007.2,0.4735]
[1752227779772,3.478,3008.8,3007.2,0.4735]
[1752227780060,0.89000738,3008.0,3007.4,0.4735]
[1752227780220,0.75542478,3008.7,3007.4,0.4735]
[1752227780221,0.89000738,3008.7,3007.4,0.4735]
[1752227780424,2.47310738,3009.3,3007.5,15.145174]
[1752227780740,2.47310738,3009.3,3007.6,12.9545]
[1752227780741,1.5831,3009.3,3007.6,12.9545]
[1752227780919,1.5831,3009.3,3007.7,3.287526]
[1752227781124,1.5831,3009.3,3007.8,12.0977026]
[1752227781324,1.5831,3009.3,3007.9,3.102208]
[1752227781544,0.04153927,3009.2,3008.0,12.9955]
[1752227781745,0.04153927,3009.2,3008.1,20.9425]
[1752227782357,10.9425491,3009.0,3008.2,12.522]
[1752227782525,10.9425491,3008.5,3007.4,7.954]
[1752227782857,1.542,3008.8,3007.5,0.4735]
[1752227783021,0.04154618,3008.7,3007.5,0.4735]
[1752227783222,0.70380463,3008.6,3007.5,0.4735]
[1752227783540,0.89000738,3009.5,3007.7,10.0]
[1752227783740,1.01042936,3009.4,3008.1,10.0]
[1752227783942,1.01037741,3009.3,3008.3,10.0]
[1752227784147,0.30678018,3009.2,3008.4,0.4735]
[1752227784350,0.89000738,3009.9,3008.6,10.0]
[1752227784656,0.89000738,3009.9,3008.5,7.958]
[1752227784657,1.00884898,3009.8,3008.8,10.0]
[1752227784868,1.00884898,3009.7,3008.9,0.4735]
[1752227785154,1.00884898,3009.6,3009.0,1.04735]
[1752227785361,0.89000738,3010.1,3009.1,22.9855]
[1752227785523,1.00758082,3010.0,3009.2,0.4735]
[1752227785724,0.70201089,3009.9,3009.2,0.4735]
[1752227785954,0.89000738,3010.4,3009.2,0.4735]
[1752227786268,1.00749334,3010.3,3009.3,12.29855]
[1752227786566,0.89000738,3010.8,3009.4,0.4735]
[1752227786728,1.00678447,3010.7,3009.6,19.756519]
[1752227786934,0.70157597,3010.6,3009.7,0.4735]
[1752227787133,0.89000738,3011.1,3009.7,0.4735]
[1752227787376,0.70138344,3011.0,3009.8,1.04735]
[1752227787536,0.93151906,3011.2,3009.8,1.04735]
[1752227787537,0.70138344,3010.9,3009.9,20.437]
[1752227787738,0.04151306,3011.1,3010.0,0.4735]
[1752227787940,0.04150893,3011.4,3010.0,0.4735]
[1752227788138,1.00641261,3011.3,3010.0,0.4735]
[1752227788349,1.04783526,3011.2,3010.0,0.4735]
[1752227788570,0.70137002,3011.1,3010.0,0.4735]
[1752227788753,0.04151444,3011.0,3010.0,0.4735]
[1752227789049,0.70141562,3010.9,3010.0,0.4735]
[1752227789249,0.55,3010.7,3010.0,0.4735]
[1752227789450,0.34641337,3010.6,3010.0,0.4735]
[1752227789661,0.04151996,3010.6,3010.0,0.4735]
[1752227789994,0.55,3011.1,3010.0,10.4735]
[1752227790135,0.1656,3010.3,3010.0,12.669285]
[1752227790341,0.1656,3010.3,3010.1,0.4615]
[1752227790543,0.55,3011.1,3010.1,0.4615]
[1752227790544,0.04151306,3011.1,3010.1,0.4615]
[1752227790884,0.1656,3010.7,3010.1,0.6271]
[1752227791175,0.1656,3010.7,3010.2,1.7437885]
[1752227791477,0.1656,3010.7,3010.4,10.0]
[1752227791772,0.1656,3010.9,3010.5,0.4615]
[1752227791976,1.68660479,3011.7,3010.5,0.4615]
[1752227792200,0.1656,3011.8,3011.2,0.1656]
[1752227792346,0.1656,3011.8,3011.4,10.0]
[1752227792549,0.1656,3011.8,3011.5,0.4615]
[1752227792850,0.1656,3012.1,3011.6,0.4615]
[1752227793166,0.04149515,3012.4,3011.8,10.0]
[1752227793477,0.89000738,3011.9,3011.8,10.0]
[1752227793648,1.59143069,3011.9,3011.8,10.0]
[1752227793844,0.70142331,3011.9,3011.8,10.0]
[1752227794355,0.70142331,3011.9,3011.8,12.371]
[1752227794558,0.70142331,3011.9,3011.8,22.8325]
[1752227794767,1.57835613,3011.9,3011.8,22.8325]
[1752227795106,1.57835018,3011.9,3011.8,22.8325]
[1752227795255,1.74395018,3011.9,3011.8,22.8325]
[1752227795455,0.86702331,3011.9,3011.8,22.8325]
[1752227796056,0.1656,3011.9,3011.8,22.8325]
[1752227796261,0.04148964,3012.8,3011.9,10.0]
[1752227796504,0.1656,3012.4,3011.9,10.4615]
[1752227796797,0.1656,3012.4,3012.0,0.4615]
[1752227796957,0.1656,3012.4,3012.2,10.0]
[1752227797160,0.1656,3012.4,3012.3,0.4615]
[1752227797957,0.1656,3012.4,3012.2,10.0]
[1752227798210,0.55,3012.7,3012.2,10.0]
[1752227798404,0.04149239,3012.6,3012.2,10.0]
[1752227799588,0.55,3012.5,3012.2,10.0]
[1752227799792,0.04149515,3012.4,3012.2,10.0]
[1752227799960,0.7156,3012.2,3012.1,12.338]
[1752227801692,0.1656,3012.2,3012.1,12.338]
[1752227801860,0.1656,3012.2,3012.1,12.7995]
[1752227802059,0.1656,3012.2,3012.1,22.7995]
[1752227802279,0.1656,3012.2,3012.1,24.89349605]
[1752227802568,0.1656,3012.2,3012.1,22.7995]
[1752227803181,0.1656,3012.2,3012.1,22.338]
[1752227803396,0.1656,3012.2,3011.7,0.4615]
[1752227803574,0.55,3012.5,3011.7,0.4615]
[1752227803774,0.55,3012.3,3011.7,0.4615]
[1752227803972,0.0414979,3012.2,3011.7,0.4615]
[1752227804385,0.0414979,3012.2,3011.4,10.0]
[1752227804573,1.5005,3012.4,3011.8,0.4615]
[1752227804778,0.1656,3011.9,3011.8,0.4615]
[1752227805066,0.1656,3011.9,3011.8,22.6785]
[1752227805670,1.5651,3012.9,3011.9,10.0]
[1752227805862,1.5651,3012.9,3011.8,22.6785]
[1752227805863,0.1656,3012.2,3012.1,10.0]
[1752227806065,0.04148964,3012.8,3012.2,10.0]
[1752227806266,0.1656,3012.1,3011.5,0.1656]
[1752227806467,0.55,3011.8,3011.6,6.102]
[1752227806690,0.59150341,3011.8,3011.7,6.102]
[1752227806886,0.55,3011.8,3011.7,6.102]
[1752227807098,0.55,3011.8,3011.1,0.4615]
[1752227807409,0.55,3011.6,3010.7,10.0]
[1752227807570,0.55,3011.4,3010.8,6.102]
[1752227807766,0.55,3011.2,3010.8,6.102]
[1752227807999,0.55,3011.2,3010.6,7.957]
[1752227808000,0.55,3011.0,3010.9,6.098]
[1752227808299,0.55,3011.7,3010.6,7.957]
[1752227808501,1.9,3010.9,3010.6,7.957]
[1752227808681,1.9,3010.9,3010.3,0.1351466]
[1752227808877,0.04150893,3011.4,3010.3,0.1351466]
[1752227809279,0.04150893,3011.4,3010.5,10.0]
[1752227809469,0.04150893,3011.4,3010.5,11.62251466]
[1752227809676,0.04150479,3011.7,3010.5,11.62251466]
[1752227810774,0.04150617,3011.6,3010.6,0.4615]
[1752227810970,0.55,3011.8,3010.6,0.4615]
[1752227810971,0.04150479,3011.7,3010.6,0.4615]
[1752227813473,1.9,3011.4,3010.6,0.4615]
[1752227813672,1.9,3011.4,3010.6,2.11665]
[1752227813885,1.9,3011.4,3010.7,0.4615]
[1752227814173,1.9,3011.4,3010.9,10.0]
[1752227814489,1.9,3011.4,3011.0,0.4615]
[1752227815999,1.9,3011.4,3011.1,0.4615]
[1752227816195,1.9,3011.4,3010.6,1.65515]
[1752227816401,0.59150341,3011.8,3011.1,0.4615]
[1752227816575,0.59150341,3011.8,3011.3,10.0]
[1752227816775,0.59150341,3011.8,3011.3,10.4615]
[1752227817693,1.6179,3011.9,3011.4,0.4615]
[1752227818003,0.1656,3011.4,3011.2,10.0]
[1752227818201,0.1656,3011.4,3011.3,16.022]
[1752227818406,0.1656,3011.4,3011.3,16.4835]
[1752227819092,0.1656,3011.4,3011.3,16.014]
[1752227820297,0.1656,3011.4,3011.3,16.4505]
[1752227820939,0.1656,3011.4,3011.3,16.014]
[1752227822034,0.1656,3011.4,3011.3,16.4505]
[1752227822237,0.3263,3012.4,3011.3,16.4505]
[1752227822238,1.5714,3012.4,3011.4,10.0]
[1752227822402,1.5714,3012.9,3011.5,0.4365]
[1752227822596,1.5714,3012.9,3011.7,10.0]
[1752227822845,1.5714,3012.9,3011.8,0.4365]
[1752227822995,0.04148964,3012.8,3012.0,10.0]
[1752227823200,0.04148964,3012.8,3012.1,0.4365]
[1752227823528,0.04148964,3012.8,3012.3,10.0]
[1752227823742,0.04148964,3012.8,3012.3,10.4365]
[1752227825737,1.5714,3012.9,3012.4,0.4365]
[1752227825957,0.04148413,3013.2,3012.6,10.0]
[1752227827812,1.5255,3013.3,3012.5,0.4365]
[1752227828026,1.5255,3013.3,3012.6,5.958]
[1752227829216,1.5255,3013.3,3012.6,15.958]
[1752227829421,1.5255,3013.3,3012.7,10.0]
[1752227829646,1.5255,3013.3,3012.7,10.4365]
[1752227829849,0.002,3013.3,3012.8,0.4365]
[1752227830144,0.002,3013.3,3013.0,10.0]
[1752227830505,0.002,3013.3,3013.1,0.4365]
[1752227830706,0.002,3013.3,3013.2,16.97765]
[1752227831304,0.002,3013.3,3013.2,17.41415]
[1752227831508,0.002,3013.3,3013.2,16.05276919]
[1752227831818,0.59147174,3014.1,3013.2,16.48926919]
[1752227832022,0.59147174,3014.1,3013.3,0.12772358]
[1752227832221,0.59147174,3014.1,3013.4,0.56422358]
[1752227832222,0.1656,3013.5,3013.4,0.56422358]
[1752227832557,0.1656,3013.2,3012.7,0.4365]
[1752227832843,0.1656,3012.8,3012.7,0.4365]
[1752227833060,0.00767621,3012.8,3012.7,0.4365]
[1752227833725,0.00767621,3012.8,3012.5,7.957]
[1752227833914,0.00767621,3012.8,3012.6,6.3565]
[1752227834116,0.59148275,3013.3,3012.7,10.0]
[1752227834117,0.55,3013.2,3012.7,10.0]
[1752227834460,1.5187,3013.4,3012.8,5.913]
[1752227834461,0.04148551,3013.1,3012.8,5.913]
[1752227834660,0.55,3013.2,3012.8,5.913]
[1752227834944,0.1656,3012.8,3012.5,7.957]
[1752227835136,0.1656,3012.6,3012.5,7.957]
[1752227835345,0.55,3013.0,3012.6,10.0]
[1752227835527,0.04148826,3012.9,3012.6,10.0]
[1752227835727,0.55,3012.9,3012.6,10.0]
[1752227836051,0.1656,3012.6,3012.5,7.957]
[1752227836245,0.1656,3012.6,3012.5,13.861]
[1752227836545,0.1656,3012.6,3012.5,24.2975]
[1752227837448,1.6518,3014.1,3012.6,10.0]
[1752227837616,0.04147312,3014.0,3012.8,10.0]
[1752227837955,8.04091293,3013.8,3012.9,11.796]
[1752227838179,0.55,3013.6,3012.4,10.0]
[1752227838318,0.55,3013.6,3010.5,3.478]
[1752227838319,0.04148,3013.5,3012.6,10.0]
[1752227838519,0.55,3013.6,3012.7,10.02705438]
[1752227838822,1.11307935,3013.7,3012.8,0.10360046]
[1752227839022,1.11307935,3013.7,3012.9,0.56714933]
[1752227839240,1.11307935,3013.7,3013.1,10.0]
[1752227839457,1.11307935,3013.7,3013.3,10.0]
[1752227839763,0.04147037,3014.2,3013.5,10.0]
[1752227840061,0.04147037,3014.2,3013.7,10.0]
[1752227840261,0.04146762,3014.4,3013.8,0.10360046]
[1752227840555,0.04146762,3014.4,3013.9,11.87860046]
[1752227840719,0.04146762,3014.4,3014.0,0.10360046]
[1752227840919,0.04146762,3014.4,3014.1,0.10360046]
[1752227841144,0.55,3014.3,3014.2,11.87260046]
[1752227841522,0.55,3014.4,3013.5,0.4365]
[1752227841716,1.5234,3014.2,3013.5,0.4365]
[1752227841917,0.04147174,3014.1,3013.5,0.4365]
[1752227842322,1.5234,3014.2,3013.5,0.4365]
[1752227842940,1.5234,3014.2,3013.7,10.0]
[1752227843138,0.002,3014.5,3013.8,0.4365]
[1752227843345,0.01644942,3014.5,3014.0,10.0]
[1752227843859,0.002,3014.5,3014.1,0.4365]
[1752227844023,0.002,3014.5,3014.2,11.726]
[1752227844542,0.01644942,3014.5,3014.3,0.12763807]
[1752227844744,0.01644942,3014.5,3014.4,0.12763807]
[1752227845057,0.002,3014.5,3014.4,0.12763807]
[1752227845437,1.12974297,3014.6,3014.4,0.12763807]
[1752227845642,1.12974297,3014.6,3014.5,21.83963807]
[1752227845855,0.33670595,3015.0,3014.5,12.27613807]
[1752227846049,0.33670595,3015.0,3014.6,0.56413807]
[1752227846249,0.33670595,3015.0,3014.7,0.12763807]
[1752227846454,0.33670595,3015.0,3014.8,11.82263807]
[1752227846662,0.33670595,3015.0,3014.9,10.56413807]
[1752227848065,0.33670595,3015.0,3014.9,10.72973807]
[1752227849326,0.33670595,3015.0,3014.9,11.49693807]
[1752227849853,0.33670595,3015.0,3014.9,13.83269188]
[1752227850028,0.33670595,3015.0,3014.9,13.99829188]
[1752227851374,0.33670595,3015.0,3014.9,13.87065381]
[1752227851684,0.33670595,3015.0,3014.9,13.99773773]
[1752227852567,0.09986695,3015.0,3014.9,13.99773773]
[1752227853584,0.09986695,3015.0,3014.9,14.10124301]
[1752227854091,0.10186695,3015.0,3014.9,14.10124301]
[1752227856865,0.10186695,3015.0,3014.9,14.10123858]
[1752227858385,0.1656,3015.7,3014.9,14.10123858]
[1752227858588,0.1656,3015.7,3015.1,10.0]
[1752227858790,0.1656,3015.7,3015.3,10.0]
[1752227858963,0.1656,3015.7,3015.5,10.0]
[1752227859158,0.1656,3015.7,3015.6,21.76758477]
[1752227859558,0.1656,3015.7,3015.6,22.23588477]
[1752227859764,1.19623837,3016.2,3015.7,10.0]
[1752227859964,1.19623837,3016.2,3015.8,11.76615999]
[1752227860178,1.19623837,3016.2,3015.9,0.2070013]
[1752227860364,1.19623837,3016.2,3016.0,11.7330013]
[1752227860581,1.19623837,3016.2,3016.1,0.2070013]
[1752227861713,1.6663,3016.5,3016.1,0.2070013]
[1752227861900,1.6663,3016.5,3016.2,11.7290013]
[1752227862410,0.002,3016.8,3016.2,23.41703143]
[1752227862411,0.1656,3016.6,3016.2,23.41703143]
[1752227862789,0.1656,3016.6,3016.2,22.94873143]
[1752227863124,0.1656,3016.4,3016.2,21.7290013]
[1752227864117,0.1656,3016.4,3015.5,0.4683]
[1752227864303,0.1656,3015.8,3015.4,7.949]
[1752227864482,0.1656,3015.6,3015.4,7.949]
[1752227864883,2.0403,3016.2,3015.4,7.949]
[1752227865307,2.0403,3016.2,3015.5,11.477]
[1752227866008,2.0403,3016.2,3015.6,10.0]
[1752227866212,0.1656,3015.5,3015.4,7.949]
[1752227867325,0.1656,3015.5,3015.4,19.411]
[1752227867981,0.4546,3016.1,3015.4,19.411]
[1752227867982,1.0046,3016.1,3015.4,19.411]
[1752227868187,11.0046,3016.1,3015.4,19.411]
[1752227868802,10.55,3016.1,3015.4,19.411]
[1752227869321,1.0046,3016.0,3015.5,5.715]
[1752227869507,0.4546,3015.9,3015.5,5.715]
[1752227871085,1.5857,3016.2,3015.6,10.0]
[1752227871286,1.5857,3016.2,3015.8,10.0]
[1752227871606,1.5857,3016.2,3015.9,11.407]
[1752227874105,0.002,3016.3,3015.9,11.407]
[1752227874407,0.1656,3016.1,3016.0,0.4683]
[1752227874798,0.1656,3016.1,3015.9,11.407]
[1752227875305,1.6645,3016.0,3015.8,10.0]
[1752227875512,1.6645,3016.0,3015.9,5.682]
[1752227876084,1.6645,3016.0,3015.9,5.7854967]
[1752227876598,0.1656,3015.9,3015.5,0.001]
[1752227876801,2.1191,3016.0,3015.6,5.675]
[1752227877616,0.1656,3015.6,3015.5,0.001]
[1752227878125,0.1656,3015.6,3015.5,5.671]
[1752227878541,0.1656,3015.6,3015.4,7.949]
[1752227878699,2.1191,3016.0,3015.5,5.666]
[1752227879326,0.432,3015.9,3015.5,5.666]
[1752227879543,0.1656,3015.5,3015.4,7.949]
[1752227879821,1.5294,3015.4,3014.6,8.4183]
[1752227880011,11.92625492,3015.3,3014.6,7.948]
[1752227880824,0.982,3015.3,3014.7,5.657]
[1752227881412,1.5294,3015.4,3014.7,5.657]
[1752227882553,1.9614,3015.4,3014.7,5.657]
[1752227882718,11.92625492,3015.3,3014.7,5.657]
[1752227883230,11.92625492,3015.3,3014.6,7.948]
[1752227883231,11.92625492,3015.3,3014.8,5.646]
[1752227883422,0.55,3015.1,3014.8,5.646]
[1752227883823,0.982,3015.1,3014.8,5.646]
[1752227884026,0.982,3015.1,3013.9,10.0]
[1752227884027,0.55,3014.5,3012.8,0.4703]
[1752227884225,10.0,3014.8,3012.8,0.4703]
[1752227884226,2.0931,3014.1,3012.9,5.81396]
[1752227884756,0.55,3013.9,3012.9,5.81396]
[1752227885258,1.5431,3014.1,3013.0,6.16648951]
[1752227885442,0.982,3014.0,3013.0,6.1333]
[1752227885645,0.55,3014.0,3013.0,6.1333]
[1752227886069,0.55,3014.0,3013.1,5.66]
[1752227886736,0.432,3013.9,3012.7,1.7396]
[1752227886933,0.55,3013.7,3012.8,5.656]
[1752227889748,0.55,3013.7,3012.9,0.10359849]
[1752227889950,0.55,3013.7,3013.0,0.10359849]
[1752227890251,0.55,3013.7,3013.1,0.10359849]
[1752227890454,0.55,3013.7,3013.2,5.74659849]
[1752227890753,0.55,3013.7,3013.2,5.643]
[1752227892755,1.5476,3013.8,3013.3,0.5034862]
[1752227892955,0.1656,3013.4,3013.3,0.5034862]
[1752227893147,0.1656,3013.4,3013.3,0.4703]
[1752227893968,1.659,3014.1,3013.3,0.4703]
[1752227893969,0.55,3013.7,3013.3,5.627]
[1752227894364,0.55,3013.7,3013.0,0.4703]
[1752227894568,0.55,3013.7,3013.1,5.641]
[1752227894868,0.55,3013.7,3013.2,0.10359196]
[1752227895059,0.55,3013.7,3013.2,5.638]
[1752227895753,1.526,3014.5,3013.3,0.4703]
[1752227895955,1.526,3014.5,3013.4,1.2693]
[1752227896143,1.526,3014.5,3013.6,10.0]
[1752227896348,1.526,3014.5,3013.7,0.4703]
[1752227896543,1.526,3014.5,3013.8,9.00003]
[1752227896743,1.6377,3015.2,3013.9,5.64]
[1752227896957,1.6377,3015.2,3014.0,0.4703]
[1752227897355,1.6377,3015.2,3014.0,10.4703]
[1752227897560,1.6377,3015.2,3014.1,1.2693]
[1752227897865,1.6377,3015.2,3014.2,1.02474375]
[1752227898392,0.55,3014.0,3012.5,0.001]
[1752227898664,0.55,3012.7,3012.5,0.001]
[1752227898865,1.5918,3012.8,3012.5,0.001]
[1752227899773,0.55,3012.7,3012.6,5.714]
[1752227900476,0.55,3012.7,3012.5,0.001]
[1752227900778,0.55,3012.7,3012.6,5.71]
[1752227902860,0.55,3012.7,3012.5,0.001]
[1752227903055,1.5918,3012.8,3012.5,5.705]
[1752227903755,0.55,3013.0,3012.5,5.705]
[1752227903957,10.0,3013.5,3012.6,1.2693956]
[1752227903958,1.6191,3013.5,3012.6,1.2693956]
[1752227904179,0.1656,3012.8,3012.6,0.03319391]
[1752227904474,0.1656,3013.3,3012.7,1.2693]
[1752227904675,0.1656,3013.3,3012.8,10.1656]
[1752227906954,8.01678857,3015.2,3012.9,7.77450169]
[1752227907143,1.5336,3015.1,3013.0,10.77745017]
[1752227907993,0.55,3015.0,3013.1,5.685]
[1752227908594,0.55,3015.0,3013.2,10.0]
[1752227908794,0.55,3015.0,3013.2,10.82420169]
[1752227909297,0.55,3015.0,3013.3,1.2693]
[1752227909450,0.55,3015.0,3013.4,1.20935017]
[1752227909650,1.5336,3015.1,3013.5,0.85738569]
[1752227909873,1.5336,3015.1,3013.7,10.0]
[1752227910269,0.55,3015.0,3013.7,10.0]
[1752227910472,0.55,3015.0,3013.9,10.0]
[1752227910779,0.55,3015.0,3013.4,1.20935017]
[1752227910980,0.55,3015.0,3013.5,5.671]
[1752227912087,0.55,3015.0,3013.6,5.664]
[1752227912583,0.55,3015.0,3011.9,4.136]
[1752227912584,0.55,3013.7,3012.6,9.2223]
[1752227912752,0.55,3013.7,3012.7,5.683]
[1752227912953,0.55,3013.7,3012.8,5.683]
[1752227914099,0.55,3013.7,3012.7,10.0]
[1752227916795,0.55,3013.7,3012.9,5.671]
[1752227918511,0.1656,3013.0,3012.9,5.671]
[1752227918695,0.00542459,3013.0,3012.9,5.671]
[1752227920209,0.55,3012.9,3012.5,0.001]
[1752227920582,0.55,3012.7,3012.6,5.656]
[1752227921219,0.55,3012.7,3012.5,0.001]
[1752227923706,0.55,3012.6,3012.5,0.001]
[1752227923907,2.0732,3012.6,3012.5,0.001]
[1752227924205,2.0732,3012.6,3011.6,0.001]
[1752227924206,0.55,3012.5,3012.1,5.659]
[1752227924510,0.55,3012.3,3012.1,5.659]
[1752227925076,0.55,3012.3,3012.1,5.658]
[1752227926107,1.5232,3012.4,3012.1,5.658]
[1752227926677,0.55,3012.5,3012.1,5.658]
[1752227927900,0.55,3012.1,3011.6,0.001]
[1752227928099,1.5848,3012.0,3011.6,0.001]
[1752227928312,0.55,3011.9,3011.6,0.001]
[1752227928799,1.5848,3012.0,3011.6,0.001]
[1752227929601,1.5848,3012.0,3011.7,5.661]
[1752227929790,1.5848,3012.0,3011.6,0.001]
[1752227929993,1.5848,3012.0,3011.7,5.66]
[1752227932924,0.55,3012.4,3011.7,5.66]
[1752227934206,1.6637,3012.5,3011.6,0.001]
[1752227934207,0.1656,3011.7,3011.6,0.001]
[1752227934411,1.6637,3012.5,3011.6,0.001]
[1752227934609,1.6637,3012.5,3011.7,5.636]
[1752227934916,0.55,3012.4,3011.7,5.636]
[1752227935494,0.1656,3011.7,3011.6,0.001]
[1752227935827,0.1656,3011.7,3011.6,15.634]
[1752227936818,0.1656,3011.7,3011.6,10.001]
[1752227937020,0.1656,3011.7,3011.6,15.628]
[1752227942025,0.1656,3011.7,3011.6,10.001]
[1752227942199,0.1656,3011.7,3011.6,15.606]
[1752227944228,0.1656,3011.7,3011.6,10.001]
[1752227944437,0.1656,3011.7,3011.6,15.599]
[1752227947941,0.7156,3011.7,3011.6,0.001]
[1752227948103,0.55,3011.6,3011.5,0.001]
[1752227948462,0.55,3012.6,3011.5,0.001]
[1752227948734,0.55,3012.2,3011.6,5.581]
[1752227949135,1.5743,3012.1,3011.7,5.582]
[1752227953050,0.55,3012.0,3011.7,5.582]
[1752227953356,0.55,3011.7,3011.5,0.001]
[1752227953653,0.55,3011.7,3011.6,5.563]
[1752227957344,0.55,3011.7,3011.5,0.001]
[1752227957548,0.55,3011.7,3011.6,5.552]
[1752227957846,0.55,3011.9,3011.5,0.001]
[1752227958016,0.55,3011.9,3011.6,5.544]
[1752227958720,0.55,3011.9,3011.5,0.001]
[1752227958721,0.1656,3011.6,3011.5,0.001]
[1752227958920,0.1656,3011.6,3011.5,5.54]
[1752227965556,0.02097346,3011.6,3011.5,5.54]
[1752227966460,0.02097346,3011.6,3011.5,0.001]
[1752227966958,0.02097346,3011.6,3011.5,5.508]
[1752227967876,2.15247346,3011.6,3011.3,0.001]
[1752227968169,11.53224813,3011.5,3011.3,0.001]
[1752227968370,11.53224813,3011.5,3011.4,5.502]
[1752227969037,11.53224813,3011.5,3011.3,0.001]
[1752227969236,11.53224813,3011.5,3011.4,5.502]
[1752227969536,11.53224813,3011.5,3011.4,5.5]
[1752227970237,11.53224813,3011.5,3011.3,0.001]
[1752227970558,11.53224813,3011.5,3011.4,5.498]
[1752227970762,11.53224813,3011.5,3011.4,5.495]
[1752227971063,0.55,3011.5,3011.4,5.495]
[1752227972142,0.002,3011.7,3011.4,5.495]
[1752227972785,0.002,3011.7,3011.4,6.8404]
[1752227974281,0.55,3012.1,3011.5,0.03320604]
[1752227974571,0.55,3012.1,3011.6,5.483]
[1752227974779,2.2162,3012.5,3011.6,5.483]
[1752227976074,2.2162,3012.5,3011.7,1.1653]
[1752227976244,2.2162,3012.5,3011.7,1.19850383]
[1752227976440,2.2162,3012.5,3011.7,1.84570983]
[1752227976640,0.1656,3011.8,3011.7,1.812506]
[1752227978680,0.1656,3011.8,3011.7,1.84570983]
[1752227978971,0.1656,3012.0,3011.7,1.812506]
[1752227979342,0.1656,3012.0,3011.7,11.812506]
[1752227979555,0.1656,3012.0,3011.8,11.76275333]
[1752227979771,0.1656,3012.0,3011.9,10.957]
[1752227982784,0.55,3012.9,3011.9,10.957]
[1752227982966,0.1656,3012.3,3011.9,10.957]
[1752227990373,0.1676,3012.3,3011.9,10.957]
[1752227991898,0.1676,3012.3,3011.9,12.42346566]
[1752227993659,0.1676,3012.3,3012.0,0.03320053]
[1752227993993,0.1676,3012.3,3012.1,5.475]
[1752227994195,0.1676,3012.3,3012.2,1.19849832]
[1752227994490,0.1676,3012.3,3012.2,1.1653]
[1752227994894,0.002,3012.3,3012.2,1.1653]
[1752227995099,0.002,3012.3,3012.2,1.83264994]
[1752227995297,0.002,3012.3,3012.2,1.86584826]
[1752227995496,0.002,3012.3,3012.2,1.83264994]
[1752227997195,0.002,3012.3,3012.2,1.99824994]
[1752227997780,0.002,3012.3,3012.2,11.99824994]
[1752227997980,0.002,3012.3,3012.2,17.47224994]
[1752228003106,0.002,3012.3,3011.9,5.472]
[1752228007813,0.002,3012.3,3012.0,10.03320053]
[1752228008026,0.002,3012.3,3012.1,5.47]
[1752228010889,0.002,3012.3,3012.1,13.427]
[1752228011425,0.002,3012.3,3012.1,7.957]
[1752228011590,0.1656,3012.2,3012.1,7.957]
[1752228011789,0.1656,3012.2,3012.1,13.426]
[1752228012619,2.0115,3012.1,3010.4,1.0445]
[1752228012830,6.99473108,3010.6,3010.4,0.001]
[1752228013013,6.99473108,3010.9,3010.5,4.924]
[1752228013192,1.4615,3011.1,3010.5,4.924]
[1752228013598,0.55,3011.9,3010.6,0.03321597]
[1752228013810,0.46,3011.8,3010.7,1.0435]
[1752228013996,0.46,3011.8,3010.8,5.9188]
[1752228015192,0.46,3011.8,3010.9,5.469]
[1752228015602,1.5769,3012.0,3011.0,10.0]
[1752228015802,1.5769,3012.0,3011.1,0.03321045]
[1752228016006,1.5769,3012.0,3011.2,5.468]
[1752228016615,1.5769,3012.0,3011.3,1.54950824]
[1752228016818,1.5769,3012.0,3011.3,11.5163]
[1752228017525,1.5798,3012.3,3011.4,0.4728]
[1752228017930,1.5798,3012.3,3011.5,5.468]
[1752228018116,1.5798,3012.3,3011.6,7.959]
[1752228018434,1.9,3012.0,3011.6,7.959]
[1752228018618,13.11144972,3011.9,3010.6,1.0435]
[1752228018930,0.55,3011.7,3010.8,10.0]
[1752228019127,1.5778,3011.6,3010.7,5.467]
[1752228019330,0.55,3011.5,3010.7,5.467]
[1752228019533,1.0126,3011.5,3010.7,5.467]
[1752228019836,1.5778,3011.2,3010.8,5.467]
[1752228020022,0.4626,3011.1,3010.9,5.467]
[1752228020338,1.0126,3011.0,3010.4,0.001]
[1752228020498,13.11144972,3010.5,3010.4,0.001]
[1752228020702,13.11144972,3010.5,3010.4,5.468]
[1752228021204,13.57404972,3010.5,3010.4,5.468]
[1752228021732,0.55,3010.2,3009.2,7.959]
[1752228021937,11.53364972,3010.0,3009.2,7.959]
[1752228022104,0.55,3009.8,3009.2,7.959]